bitfinex-derivatives/quotes_BTCF0:USTF0_20251030
["timestamp","ask_amount","ask_price","bid_price","bid_amount"]
[1761856012736,0.65578297,107260.0,107250.0,0.09095]
[1761856013043,1.01038297,107260.0,107250.0,0.09095]
[1761856013942,1.11034691,107260.0,107250.0,0.09095]
[1761856014144,0.76541174,107260.0,107250.0,0.09095]
[1761856014340,0.08001174,107260.0,107250.0,0.09095]
[1761856014535,0.05001174,107260.0,107250.0,0.45175]
[1761856014735,0.01660328,107260.0,107250.0,0.45175]
[1761856014935,0.03340846,107260.0,107250.0,0.45175]
[1761856015131,0.76207907,107270.0,107260.0,0.09095]
[1761856015442,0.67127907,107270.0,107260.0,0.09095]
[1761856015641,1.03207907,107270.0,107260.0,0.09095]
[1761856015841,0.98281816,107270.0,107260.0,0.09095]
[1761856016235,1.0847821,107270.0,107260.0,0.09095]
[1761856016438,1.10341561,107270.0,107260.0,0.09095]
[1761856016640,1.10341561,107270.0,107260.0,0.05515]
[1761856016944,1.10341561,107270.0,107260.0,0.02067]
[1761856017344,1.10341561,107270.0,107260.0,0.05515]
[1761856017637,1.10341561,107270.0,107260.0,0.09095]
[1761856017842,1.32793167,107270.0,107260.0,0.09095]
[1761856018238,1.2542932,107270.0,107260.0,0.09095]
[1761856018444,1.22793167,107270.0,107260.0,0.09095]
[1761856018841,1.32789561,107270.0,107260.0,0.09095]
[1761856019847,1.32789561,107270.0,107260.0,0.05515]
[1761856019848,1.34374806,107270.0,107260.0,0.05515]
[1761856020043,1.35086806,107270.0,107260.0,0.02067]
[1761856020232,1.35086806,107270.0,107260.0,0.09095]
[1761856020437,1.25090412,107270.0,107260.0,0.09095]
[1761856020750,1.27718565,107270.0,107260.0,0.09095]
[1761856021047,1.35017529,107270.0,107260.0,0.02067]
[1761856021548,1.45013923,107270.0,107260.0,0.02067]
[1761856021752,1.18293923,107270.0,107250.0,0.02067]
[1761856021940,0.6588529,107260.0,107240.0,0.09095]
[1761856022140,0.96361296,107250.0,107240.0,0.05515]
[1761856022445,0.9903729,107250.0,107240.0,0.05515]
[1761856022743,0.66309757,107250.0,107240.0,0.09095]
[1761856022948,0.35784467,107250.0,107240.0,0.45175]
[1761856023143,0.03352467,107250.0,107240.0,0.45275]
[1761856023342,0.41108167,107260.0,107250.0,0.09095]
[1761856023343,0.35788467,107260.0,107250.0,0.09095]
[1761856023846,1.06361984,107260.0,107250.0,0.09095]
[1761856024043,1.07361984,107260.0,107250.0,0.09095]
[1761856024534,0.82864861,107260.0,107250.0,0.09095]
[1761856024740,1.07361984,107260.0,107250.0,0.09095]
[1761856025137,1.07461984,107260.0,107250.0,0.09095]
[1761856025638,1.04109517,107260.0,107250.0,0.09095]
[1761856025843,0.71673517,107260.0,107250.0,0.09095]
[1761856026043,1.04101517,107260.0,107250.0,0.09095]
[1761856026240,0.94105123,107260.0,107250.0,0.09095]
[1761856026440,0.93105123,107260.0,107250.0,0.09095]
[1761856028756,1.03101517,107260.0,107250.0,0.09095]
[1761856029353,1.04101517,107260.0,107250.0,0.05515]
[1761856029941,1.04101517,107260.0,107250.0,0.09095]
[1761856030646,1.35101517,107260.0,107240.0,0.06211]
[1761856030847,0.60577123,107250.0,107240.0,0.10379]
[1761856031054,0.61577123,107250.0,107240.0,0.10379]
[1761856031757,0.71573517,107250.0,107240.0,0.10379]
[1761856032055,0.71573517,107250.0,107240.0,0.10479]
[1761856033051,0.68005517,107250.0,107240.0,0.10479]
[1761856033451,1.04085517,107250.0,107240.0,0.10479]
[1761856034251,0.94801123,107250.0,107240.0,0.10479]
[1761856034556,0.58721123,107250.0,107240.0,0.10479]
[1761856035156,0.58721123,107250.0,107240.0,0.10379]
[1761856035656,0.58621123,107250.0,107240.0,0.10379]
[1761856036052,0.58621123,107250.0,107240.0,0.10479]
[1761856036254,0.26209123,107250.0,107240.0,0.46559]
[1761856036551,0.58613123,107250.0,107240.0,0.46559]
[1761856036754,0.68605517,107250.0,107240.0,0.46559]
[1761856037448,0.01712,107250.0,107240.0,0.46559]
[1761856037649,0.00712,107250.0,107240.0,0.79235]
[1761856037852,0.00712,107250.0,107240.0,1.16392998]
[1761856038246,0.00712,107250.0,107240.0,0.91895875]
[1761856039259,0.00712,107250.0,107240.0,0.82300245]
[1761856039554,0.00712,107250.0,107240.0,0.82580245]
[1761856039960,0.00712,107250.0,107240.0,0.82300245]
[1761856040154,0.00712,107250.0,107240.0,0.82580245]
[1761856040354,0.00712,107250.0,107240.0,0.91907865]
[1761856040658,0.00712,107250.0,107240.0,0.82300245]
[1761856043258,0.41818343,107270.0,107260.0,0.10558]
[1761856043455,0.43474199,107270.0,107260.0,0.10558]
[1761856043652,0.42681209,107270.0,107260.0,0.10558]
[1761856043854,0.01655856,107270.0,107260.0,0.46638]
[1761856044056,0.01655856,107270.0,107260.0,0.7903]
[1761856044253,0.01655856,107270.0,107260.0,0.46638]
[1761856044453,0.01655856,107270.0,107260.0,0.7903]
[1761856044654,0.01655856,107270.0,107260.0,0.79042]
[1761856044857,0.01855856,107270.0,107260.0,0.79042]
[1761856045561,0.02855856,107270.0,107260.0,0.79042]
[1761856045963,0.03055856,107270.0,107260.0,0.46638]
[1761856046162,0.03055856,107270.0,107260.0,0.79046]
[1761856046562,0.54077603,107270.0,107260.0,0.10558]
[1761856046861,0.89957603,107270.0,107260.0,0.10558]
[1761856047662,0.89757603,107270.0,107260.0,0.10558]
[1761856047863,0.89857603,107270.0,107260.0,0.10558]
[1761856048564,0.79861209,107270.0,107260.0,0.10558]
[1761856048765,0.43781209,107270.0,107260.0,0.10558]
[1761856049060,0.79861209,107270.0,107260.0,0.10558]
[1761856049559,0.53777603,107270.0,107260.0,0.10558]
[1761856049769,0.43781209,107270.0,107260.0,0.10558]
[1761856050475,0.02755856,107270.0,107260.0,0.10558]
[1761856050661,0.77485334,107280.0,107270.0,0.10558]
[1761856050856,0.97110079,107280.0,107270.0,0.10558]
[1761856051165,1.29506079,107280.0,107270.0,0.10558]
[1761856051670,1.19509685,107280.0,107260.0,0.10558]
[1761856051962,0.77105353,107270.0,107260.0,0.10558]
[1761856052167,0.83105353,107270.0,107260.0,0.10558]
[1761856052765,0.93101747,107270.0,107260.0,0.10558]
[1761856052963,0.52076394,107270.0,107260.0,0.10558]
[1761856053268,0.47025353,107270.0,107260.0,0.10558]
[1761856053470,0.47025353,107270.0,107260.0,0.46638]
[1761856055170,0.57021747,107270.0,107260.0,0.46638]
[1761856055764,1.29733042,107270.0,107250.0,0.38471]
[1761856055968,1.09489353,107260.0,107240.0,0.09419001]
[1761856056168,0.41025353,107250.0,107240.0,0.09419001]
[1761856056465,0.42025353,107250.0,107240.0,0.09419001]
[1761856056772,0.01,107250.0,107240.0,0.45499001]
[1761856057165,0.01,107250.0,107240.0,0.45599001]
[1761856057873,0.01,107250.0,107240.0,0.45499001]
[1761856058173,0.80456648,107270.0,107250.0,0.10558]
[1761856058363,1.47453042,107270.0,107260.0,0.10558]
[1761856058673,1.79857042,107270.0,107260.0,0.10558]
[1761856058969,1.47453042,107270.0,107260.0,0.10558]
[1761856059166,1.79857042,107270.0,107260.0,0.10558]
[1761856059474,1.38831689,107270.0,107260.0,0.10558]
[1761856059664,1.79857042,107270.0,107260.0,0.10558]
[1761856060872,1.79957042,107270.0,107260.0,0.10558]
[1761856061675,1.28957042,107270.0,107260.0,0.10558]
[1761856061876,0.50676648,107270.0,107260.0,0.10558]
[1761856062071,0.83076648,107270.0,107260.0,0.10558]
[1761856062973,1.29153042,107270.0,107260.0,0.02391]
[1761856063176,1.28953042,107270.0,107260.0,0.06278]
[1761856063569,1.28953042,107270.0,107260.0,0.10079]
[1761856063769,1.28853042,107270.0,107260.0,0.10079]
[1761856067774,0.92773042,107270.0,107260.0,0.10079]
[1761856067974,1.28853042,107270.0,107260.0,0.10079]
[1761856068660,0.82776648,107270.0,107260.0,0.10079]
[1761856070069,0.89421747,107270.0,107260.0,0.10179]
[1761856070268,1.25501747,107270.0,107260.0,0.10279]
[1761856070664,0.89421747,107270.0,107260.0,0.10279]
[1761856070870,0.9193706,107270.0,107260.0,0.10279]
[1761856071471,0.81940666,107270.0,107260.0,0.10279]
[1761856072970,0.49540666,107270.0,107260.0,0.10279]
[1761856073175,0.02515313,107270.0,107260.0,0.46359]
[1761856073681,0.47491084,107280.0,107270.0,0.10182]
[1761856074072,0.11767789,107280.0,107270.0,0.46262]
[1761856074271,0.01628351,107280.0,107270.0,0.46262]
[1761856074475,0.02515313,107290.0,107280.0,0.10182]
[1761856074675,0.02515313,107290.0,107280.0,0.46262]
[1761856075470,1.20410191,107300.0,107290.0,0.02494]
[1761856075471,0.89381232,107300.0,107290.0,0.02494]
[1761856075680,1.32067602,107300.0,107290.0,0.02494]
[1761856076178,1.32067602,107300.0,107290.0,0.10182]
[1761856076981,1.32667602,107300.0,107290.0,0.10182]
[1761856077681,1.32667602,107300.0,107290.0,0.06381]
[1761856078184,1.32667602,107300.0,107290.0,0.10182]
[1761856079878,1.32467602,107300.0,107290.0,0.10182]
[1761856080685,1.32067602,107300.0,107290.0,0.10182]
[1761856081384,0.89691208,107300.0,107290.0,0.10182]
[1761856081585,0.12585855,107300.0,107290.0,0.46262]
[1761856081789,0.01661017,107300.0,107290.0,0.46262]
[1761856082078,0.92492421,107310.0,107300.0,0.10182]
[1761856082284,0.92492421,107310.0,107300.0,0.46262]
[1761856082485,0.99931054,107310.0,107300.0,0.46262]
[1761856082674,0.77551448,107310.0,107300.0,0.46262]
[1761856082875,0.9454038,107310.0,107300.0,0.06381]
[1761856083373,0.9474038,107310.0,107300.0,0.10182]
[1761856083685,1.00148547,107310.0,107290.0,0.01296]
[1761856083881,1.09477353,107300.0,107290.0,0.01296]
[1761856084277,1.09477353,107300.0,107290.0,0.08984]
[1761856084683,1.11112655,107300.0,107290.0,0.01296]
[1761856084876,1.21109049,107300.0,107280.0,0.02494]
[1761856085180,0.0306,107280.0,107270.0,0.02120592]
[1761856085380,1.12533353,107280.0,107270.0,0.02120592]
[1761856086384,1.22529747,107280.0,107270.0,0.02120592]
[1761856087589,1.22529747,107280.0,107270.0,0.12302592]
[1761856087792,0.3402,107280.0,107270.0,0.48382592]
[1761856087981,0.01652,107280.0,107270.0,0.48382592]
[1761856088585,0.00826,107280.0,107270.0,0.48382592]
[1761856089087,0.04146,107280.0,107270.0,0.48382592]
[1761856090079,0.04146,107280.0,107270.0,0.48482592]
[1761856090275,1.03619353,107290.0,107280.0,0.06381]
[1761856090489,1.03619353,107290.0,107280.0,0.10182]
[1761856090685,0.72590394,107290.0,107280.0,0.10182]
[1761856090988,1.13615747,107290.0,107280.0,0.10182]
[1761856092077,1.13815747,107290.0,107280.0,0.10182]
[1761856092890,1.13915747,107290.0,107280.0,0.10182]
[1761856093587,1.13915747,107290.0,107270.0,0.48287592]
[1761856093788,0.77105353,107280.0,107270.0,0.02120592]
[1761856094889,0.87101747,107280.0,107270.0,0.02120592]
[1761856095896,0.46076394,107280.0,107270.0,0.02120592]
[1761856096193,0.87101747,107280.0,107270.0,0.02120592]
[1761856096897,0.92509914,107280.0,107270.0,0.02120592]
[1761856097790,0.92709914,107280.0,107270.0,0.02120592]
[1761856098183,1.12704486,107280.0,107270.0,0.02120592]
[1761856098390,1.12424486,107280.0,107270.0,0.02120592]
[1761856101293,1.20354339,107280.0,107270.0,0.02120592]
[1761856101498,1.47694172,107280.0,107270.0,0.02120592]
[1761856101993,2.07694172,107280.0,107270.0,0.02120592]
[1761856103993,1.58738966,107280.0,107270.0,0.12122592]
[1761856104188,1.75326172,107280.0,107270.0,0.02120592]
[1761856104389,2.07694172,107280.0,107270.0,0.02120592]
[1761856105691,1.47694172,107280.0,107270.0,0.02120592]
[1761856105995,2.11694172,107280.0,107270.0,0.02120592]
[1761856106895,2.71694172,107280.0,107270.0,0.02120592]
[1761856108392,2.71694172,107280.0,107270.0,0.04448592]
[1761856108696,1.01848569,107280.0,107270.0,0.12122592]
[1761856108893,1.34216569,107280.0,107270.0,0.12122592]
[1761856109292,1.68478075,107280.0,107270.0,0.12122592]
[1761856110489,1.96478075,107280.0,107270.0,0.12122592]
[1761856111195,0.04066,107240.0,107230.0,0.38408]
[1761856111400,0.09145,107240.0,107230.0,0.46082]
[1761856111594,0.48304406,107240.0,107230.0,0.46082]
[1761856112684,0.38304406,107240.0,107230.0,0.46382]
[1761856112889,0.47969175,107240.0,107230.0,0.46882]
[1761856114100,0.47969175,107240.0,107230.0,0.46682]
[1761856115104,0.48824175,107240.0,107230.0,0.46682]
[1761856115902,0.48824175,107240.0,107230.0,0.46582]
[1761856116407,0.48824175,107240.0,107230.0,0.46382]
[1761856116599,0.48824175,107240.0,107230.0,0.46282]
[1761856116797,0.47824175,107240.0,107230.0,0.46282]
[1761856118597,0.47824175,107240.0,107230.0,1.06282]
[1761856119102,0.57820569,107240.0,107230.0,1.06282]
[1761856119808,0.47824175,107240.0,107230.0,1.06282]
[1761856123206,0.07981769,107240.0,107230.0,1.06282]
[1761856123397,0.19579703,107240.0,107230.0,0.75190183]
[1761856123599,0.19579703,107250.0,107240.0,0.09808]
[1761856123797,0.19579703,107250.0,107240.0,0.45888]
[1761856124305,0.19579703,107250.0,107240.0,0.49501245]
[1761856124505,0.24974,107270.0,107260.0,0.09808]
[1761856124704,0.24974,107270.0,107260.0,0.45888]
[1761856124705,0.44937703,107270.0,107260.0,0.45888]
[1761856126103,0.55659703,107280.0,107260.0,0.45888]
[1761856126308,0.74893895,107280.0,107270.0,0.09808]
[1761856126804,0.43549798,107280.0,107270.0,0.09808]
[1761856127113,0.00384,107280.0,107270.0,0.45888]
[1761856127305,0.39543406,107280.0,107270.0,0.45888]
[1761856127505,0.39927406,107280.0,107270.0,0.45888]
[1761856127905,0.39543406,107280.0,107270.0,0.45888]
[1761856128503,0.5773,107290.0,107280.0,0.09808]
[1761856128811,1.22883979,107290.0,107280.0,0.45888]
[1761856129211,1.03304276,107290.0,107280.0,0.45888]
[1761856129410,0.97304276,107290.0,107280.0,0.45888]
[1761856130015,1.26880373,107290.0,107280.0,0.45888]
[1761856130207,1.27080373,107290.0,107280.0,0.45888]
[1761856130914,1.3437125,107290.0,107280.0,0.45888]
[1761856131302,1.7265125,107290.0,107280.0,0.09808]
[1761856131706,1.3657125,107290.0,107280.0,0.09808]
[1761856131920,1.7265125,107290.0,107280.0,0.09808]
[1761856132107,1.7265125,107290.0,107270.0,0.38365]
[1761856132302,0.39927406,107280.0,107270.0,0.45888]
[1761856132517,0.42927406,107280.0,107270.0,0.45888]
[1761856133314,0.43027406,107280.0,107270.0,0.45888]
[1761856133510,0.530238,107280.0,107270.0,0.45888]
[1761856135214,0.33544097,107280.0,107270.0,0.45888]
[1761856135414,0.531238,107280.0,107270.0,0.45888]
[1761856135813,0.531238,107280.0,107270.0,0.48008592]
[1761856136013,0.72703503,107280.0,107270.0,0.02120592]
[1761856136318,0.72703503,107280.0,107270.0,0.11928592]
[1761856136718,0.75211963,107280.0,107270.0,0.11928592]
[1761856136910,0.5563226,107280.0,107270.0,0.11928592]
[1761856138320,0.531238,107280.0,107270.0,0.11928592]
[1761856142614,0.522538,107280.0,107270.0,0.11928592]
[1761856143614,0.42259406,107280.0,107270.0,0.48008592]
[1761856144618,0.522538,107280.0,107270.0,0.48008592]
[1761856144912,0.39259406,107280.0,107270.0,0.48008592]
[1761856145317,0.40259406,107280.0,107270.0,0.48008592]
[1761856145916,0.502538,107280.0,107270.0,0.48008592]
[1761856146316,0.40259406,107280.0,107270.0,0.48008592]
[1761856146925,0.39259406,107280.0,107270.0,0.48008592]
[1761856148220,0.19679703,107280.0,107270.0,0.48008592]
[1761856148820,0.39259406,107280.0,107270.0,0.48008592]
[1761856149221,0.492538,107280.0,107270.0,0.48008592]
[1761856150028,0.51764115,107280.0,107270.0,0.48008592]
[1761856150228,0.41769721,107280.0,107270.0,0.48008592]
[1761856153332,0.51764115,107280.0,107270.0,0.48008592]
[1761856154127,0.45118643,107280.0,107270.0,0.48008592]
[1761856155041,0.55113037,107280.0,107270.0,0.48008592]
[1761856156932,0.69833503,107280.0,107270.0,0.11928592]
[1761856157144,1.09542425,107280.0,107270.0,0.02120592]
[1761856157330,1.1122167,107280.0,107270.0,0.02120592]
[1761856159148,1.1094167,107280.0,107270.0,0.02120592]
[1761856159637,1.1094167,107280.0,107270.0,0.07830592]
[1761856160137,1.14296761,107280.0,107270.0,0.02120592]
[1761856160538,1.09268594,107280.0,107270.0,0.02120592]
[1761856161329,1.44646869,107280.0,107270.0,0.02120592]
[1761856161543,1.44646869,107280.0,107260.0,0.05802]
[1761856161842,0.59297028,107270.0,107250.0,0.45256]
[1761856162049,0.22098414,107260.0,107250.0,0.45256]
[1761856162235,0.29098414,107260.0,107250.0,0.45256]
[1761856163034,0.39092808,107260.0,107250.0,0.45256]
[1761856165548,0.29098414,107260.0,107250.0,0.45256]
[1761856165738,0.22098414,107260.0,107250.0,0.45256]
[1761856166047,0.19582154,107260.0,107250.0,0.45256]
[1761856166846,0.19582154,107260.0,107250.0,0.45356]
[1761856167143,0.19582154,107260.0,107250.0,0.45456]
[1761856167345,0.22098414,107260.0,107250.0,0.45456]
[1761856167946,0.32092808,107260.0,107250.0,0.45456]
[1761856168644,0.22098414,107260.0,107250.0,0.45456]
[1761856169743,0.19582154,107260.0,107250.0,0.45456]
[1761856169944,0.09582154,107260.0,107250.0,0.45456]
[1761856173154,0.22098414,107270.0,107260.0,0.09084]
[1761856173335,0.0251626,107270.0,107260.0,0.45164]
[1761856173539,0.19582154,107270.0,107260.0,0.45164]
[1761856174634,0.22098414,107280.0,107270.0,0.09084]
[1761856174839,0.22098414,107280.0,107270.0,0.45164]
[1761856175039,0.52674962,107280.0,107270.0,0.45164]
[1761856175347,0.0351626,107280.0,107270.0,0.45164]
[1761856175848,0.6267514,107280.0,107270.0,0.45164]
[1761856176242,0.72669534,107280.0,107270.0,0.45264]
[1761856176636,0.6267514,107280.0,107270.0,0.45164]
[1761856176841,0.43092986,107280.0,107270.0,0.45164]
[1761856177650,0.39576726,107280.0,107270.0,0.45164]
[1761856178749,0.4957112,107280.0,107270.0,0.45164]
[1761856178950,0.39576726,107280.0,107270.0,0.45164]
[1761856179151,0.39576726,107280.0,107270.0,0.45264]
[1761856179351,0.6167514,107280.0,107270.0,0.45364]
[1761856179552,0.6267514,107280.0,107270.0,0.45364]
[1761856180052,0.72669534,107280.0,107270.0,0.45364]
[1761856181750,0.72669534,107280.0,107270.0,0.0591]
[1761856181751,1.08749534,107280.0,107270.0,0.0591]
[1761856182057,1.09588148,107280.0,107270.0,0.02393]
[1761856182251,1.09588148,107280.0,107270.0,0.058]
[1761856182447,1.45588148,107280.0,107270.0,0.058]
[1761856182647,1.45588148,107280.0,107270.0,0.02393]
[1761856182848,1.45588148,107280.0,107270.0,0.02193]
[1761856183055,1.45868148,107280.0,107270.0,0.02193]
[1761856183251,1.45868148,107280.0,107260.0,0.056]
[1761856183455,1.26005994,107280.0,107270.0,0.02014]
[1761856183849,1.26005994,107280.0,107270.0,0.05421]
[1761856184049,1.26285994,107280.0,107270.0,0.05421]
[1761856184253,1.26005994,107280.0,107270.0,0.05421]
[1761856184654,1.45588148,107280.0,107270.0,0.05421]
[1761856185058,1.45868148,107280.0,107270.0,0.05421]
[1761856185654,1.45588148,107280.0,107270.0,0.05421]
[1761856185959,1.45788148,107280.0,107270.0,0.05421]
[1761856186151,1.46068148,107280.0,107270.0,0.05421]
[1761856186656,1.10088148,107280.0,107270.0,0.05421]
[1761856186856,1.09808148,107280.0,107270.0,0.08811]
[1761856187945,1.45888148,107280.0,107270.0,0.08811]
[1761856188552,1.51196315,107280.0,107270.0,0.08811]
[1761856188745,1.45888148,107280.0,107270.0,0.08811]
[1761856188950,1.47841441,107280.0,107260.0,0.0899]
[1761856189150,0.59015083,107270.0,107250.0,0.45162]
[1761856189459,0.52432929,107270.0,107260.0,0.08811]
[1761856190359,0.28861801,107270.0,107260.0,0.08811]
[1761856190548,0.35096632,107270.0,107260.0,0.08811]
[1761856191255,0.15514478,107270.0,107260.0,0.08811]
[1761856191559,0.02514478,107270.0,107260.0,0.44891]
[1761856191760,0.22096632,107270.0,107260.0,0.44891]
[1761856191961,0.19582154,107270.0,107260.0,0.44891]
[1761856192346,0.09582154,107270.0,107260.0,0.44891]
[1761856192754,0.22096632,107280.0,107270.0,0.08811]
[1761856193966,0.73667752,107280.0,107270.0,0.08911]
[1761856194655,0.73667752,107280.0,107270.0,0.09011]
[1761856195863,0.73667752,107280.0,107270.0,0.11131592]
[1761856197756,0.73667752,107280.0,107270.0,0.11031592]
[1761856199069,0.73667752,107280.0,107270.0,0.10931592]
[1761856200054,0.74506203,107280.0,107270.0,0.10931592]
[1761856200260,0.74506203,107280.0,107270.0,0.10107592]
[1761856200569,0.74506203,107280.0,107230.0,0.04985615]
[1761856200570,1.4902663,107280.0,107190.0,0.06654845]
[1761856200876,0.94826462,107200.0,107180.0,0.41075083]
[1761856201061,0.58746462,107190.0,107160.0,0.02014]
[1761856201262,0.42518448,107170.0,107150.0,0.02014]
[1761856201565,0.61263302,107160.0,107120.0,0.02014]
[1761856201760,0.39164308,107130.0,107120.0,0.02014]
[1761856202071,0.41627977,107130.0,107120.0,0.08811]
[1761856202270,0.02508433,107150.0,107140.0,0.08811]
[1761856202463,0.29538836,107150.0,107140.0,0.08811]
[1761856202664,0.68702218,107150.0,107120.0,0.02014]
[1761856202871,0.2953791,107150.0,107140.0,0.03407]
[1761856203062,0.07034911,107150.0,107120.0,0.02414]
[1761856203370,0.45623344,107150.0,107140.0,0.03407]
[1761856203564,0.06749,107140.0,107130.0,0.42877]
[1761856203756,0.09205911,107140.0,107130.0,0.42877]
[1761856203960,0.46188147,107140.0,107130.0,0.42877]
[1761856204154,0.06749,107130.0,107120.0,0.06797]
[1761856204356,0.06749,107130.0,107120.0,0.08811]
[1761856204557,0.45277045,107130.0,107120.0,0.06797]
[1761856204765,0.06749,107120.0,107110.0,0.42877]
[1761856204965,0.46874281,107120.0,107110.0,0.06797]
[1761856205170,0.83954281,107120.0,107110.0,0.06797]
[1761856205467,0.83954281,107120.0,107090.0,0.39487]
[1761856205468,0.08453,107100.0,107090.0,0.39487]
[1761856205670,0.06749,107090.0,107080.0,0.44891]
[1761856205870,0.09697045,107090.0,107080.0,0.06797]
[1761856206078,0.06749,107080.0,107070.0,0.42877]
[1761856206369,0.50085736,107080.0,107070.0,0.42877]
[1761856206570,0.02439321,107080.0,107070.0,0.43157]
[1761856206881,0.07447451,107140.0,107130.0,0.06797]
[1761856207066,0.5225208,107160.0,107150.0,0.02458]
[1761856207265,0.09841,107160.0,107150.0,0.01229]
[1761856207583,0.46691236,107160.0,107120.0,1.50486]
[1761856207875,0.08841,107140.0,107130.0,0.003]
[1761856208178,0.05484,107100.0,107090.0,0.02458]
[1761856208358,0.06749,107090.0,107080.0,0.008]
[1761856208559,0.05484,107060.0,107050.0,0.38200592]
[1761856208778,0.08841,107060.0,107050.0,0.40658592]
[1761856208974,0.08841,107080.0,107070.0,0.02458]
[1761856209174,0.48177376,107080.0,107070.0,0.7216]
[1761856209383,0.50045376,107080.0,107070.0,0.7216]
[1761856209763,0.50765183,107080.0,107060.0,0.3608]
[1761856209969,0.02092,107100.0,107070.0,0.42722]
[1761856210165,0.08841,107100.0,107090.0,0.78802]
[1761856210374,0.02092,107140.0,107110.0,0.06642]
[1761856210566,0.46813236,107120.0,107110.0,0.3608]
[1761856210772,0.10831,107100.0,107090.0,1.8608]
[1761856210971,0.35982236,107100.0,107090.0,1.8608]
[1761856211171,0.40128236,107100.0,107090.0,1.8608]
[1761856211370,0.46813236,107100.0,107090.0,1.8608]
[1761856211576,0.48681236,107100.0,107080.0,0.3608]
[1761856211784,0.48681236,107100.0,107070.0,0.3608]
[1761856211785,0.10246,107090.0,107070.0,0.3608]
[1761856212080,0.48681236,107080.0,107070.0,1.8608]
[1761856212580,0.35982236,107080.0,107070.0,1.8608]
[1761856212782,0.44360236,107090.0,107080.0,0.08275]
[1761856213079,0.45360236,107090.0,107080.0,0.3608]
[1761856213375,0.35982236,107090.0,107080.0,0.44355]
[1761856213576,0.47228236,107090.0,107080.0,0.3608]
[1761856213783,0.10831,107080.0,107070.0,0.3618]
[1761856213986,0.41996236,107080.0,107070.0,0.44455]
[1761856214183,0.51681236,107080.0,107070.0,0.3608]
[1761856214382,0.12699,107080.0,107070.0,0.35581623]
[1761856214685,0.006,107090.0,107070.0,0.43856623]
[1761856214873,0.006,107090.0,107080.0,0.45681]
[1761856215073,0.38435236,107100.0,107080.0,0.44635]
[1761856215272,0.46813236,107100.0,107090.0,0.3608]
[1761856215478,0.46813236,107100.0,107090.0,0.5369562]
[1761856215785,0.44318236,107110.0,107100.0,0.08272]
[1761856216079,0.44318236,107110.0,107100.0,0.3608]
[1761856216278,0.44318236,107110.0,107090.0,0.3608]
[1761856216279,0.10921,107100.0,107090.0,0.3608]
[1761856216479,0.13789,107100.0,107090.0,0.3608]
[1761856216665,0.13789,107100.0,107090.0,0.3618]
[1761856216868,0.01868,107100.0,107090.0,0.44452]
[1761856217082,0.46186236,107100.0,107090.0,0.44352]
[1761856217268,0.02585,107120.0,107100.0,0.08272]
[1761856217583,0.22251394,107120.0,107110.0,0.3608]
[1761856217878,0.3608,107150.0,107120.0,0.02594]
[1761856218082,0.28330565,107140.0,107130.0,0.44352]
[1761856218286,0.01868,107140.0,107130.0,0.80432]
[1761856218581,0.01868,107140.0,107100.0,0.38674]
[1761856218582,0.08336,107120.0,107100.0,0.38674]
[1761856218780,0.35982236,107110.0,107100.0,0.10866]
[1761856218976,0.35982236,107120.0,107110.0,0.08272]
[1761856219172,0.35982236,107140.0,107120.0,0.06698]
[1761856219373,0.38533,107160.0,107140.0,0.06698]
[1761856219567,0.44318236,107150.0,107140.0,0.46946]
[1761856219878,0.01868,107160.0,107150.0,0.08272]
[1761856220071,0.01868,107160.0,107140.0,0.3608]
[1761856220072,0.10204,107150.0,107140.0,0.3608]
[1761856220475,0.11204,107150.0,107140.0,0.3608]
[1761856220673,0.08336,107130.0,107110.0,0.3608]
[1761856220868,0.08336,107120.0,107110.0,0.3608]
[1761856221083,0.04311,107100.0,107090.0,0.44352]
[1761856221283,0.3608,107130.0,107100.0,0.10866]
[1761856221491,0.08336,107120.0,107110.0,0.3608]
[1761856221673,0.01868,107110.0,107100.0,0.10866]
[1761856221874,0.01868,107110.0,107100.0,0.46946]
[1761856222074,0.08336,107130.0,107100.0,0.38674]
[1761856222383,0.04311,107140.0,107130.0,0.08272]
[1761856222577,0.10204,107130.0,107100.0,0.38674]
[1761856222888,0.40293236,107110.0,107100.0,0.46946]
[1761856223074,0.46186236,107110.0,107100.0,0.46946]
[1761856223380,0.3608,107130.0,107120.0,0.08272]
[1761856223579,0.49406256,107130.0,107100.0,0.38674]
[1761856223783,0.07301256,107130.0,107120.0,0.44352]
[1761856223974,0.07301256,107130.0,107120.0,0.08272]
[1761856224174,0.04858256,107130.0,107120.0,0.10866]
[1761856224374,0.04458256,107130.0,107120.0,0.10866]
[1761856224571,0.04458256,107130.0,107120.0,0.46946]
[1761856224572,0.02590256,107130.0,107120.0,0.46946]
[1761856224775,0.24541594,107140.0,107130.0,0.08272]
[1761856224985,0.2713448,107140.0,107130.0,0.44352]
[1761856225474,0.02592886,107140.0,107130.0,0.44632]
[1761856225676,0.24541594,107140.0,107130.0,0.44352]
[1761856226377,0.33321331,107140.0,107130.0,0.44352]
[1761856226672,0.04311,107130.0,107120.0,0.46946]
[1761856226876,0.08336,107120.0,107110.0,0.40248]
[1761856227081,0.29010931,107120.0,107110.0,0.44352]
[1761856227279,0.29010931,107120.0,107110.0,0.08272]
[1761856227280,0.29016016,107120.0,107110.0,0.08272]
[1761856227492,0.33327016,107120.0,107110.0,0.08272]
[1761856227671,0.04474422,107120.0,107110.0,0.44352]
[1761856227873,0.007,107140.0,107130.0,0.08272]
[1761856228086,0.25241594,107140.0,107130.0,0.44352]
[1761856228277,0.001,107140.0,107130.0,0.44632]
[1761856228478,0.24641594,107140.0,107130.0,0.44632]
[1761856228775,0.001,107140.0,107130.0,0.80712]
[1761856228979,0.001,107140.0,107130.0,0.80432]
[1761856229288,0.24541594,107150.0,107140.0,0.10866]
[1761856229494,0.29510643,107150.0,107140.0,0.46946]
[1761856229878,0.24541594,107150.0,107140.0,0.46946]
[1761856230191,0.68957594,107150.0,107140.0,0.08272]
[1761856230381,0.75794643,107150.0,107120.0,0.38674]
[1761856230685,0.45360049,107150.0,107140.0,0.10866]
[1761856230880,0.08336,107140.0,107130.0,0.3608]
[1761856231081,0.10204,107140.0,107130.0,0.40248]
[1761856231382,0.15173049,107140.0,107130.0,0.40248]
[1761856231990,0.39714643,107140.0,107130.0,0.44352]
[1761856232192,0.08336,107130.0,107120.0,0.3608]